bitfinex/quotes_ETHUSD_20250622
["timestamp","ask_amount","ask_price","bid_price","bid_amount"]
[1750592167248,25.0,2274.0,2273.9,10.0]
[1750592168026,25.0,2274.0,2273.9,11.3792]
[1750592174944,25.0,2274.0,2273.9,12.700306]
[1750592178082,23.21839992,2274.0,2273.9,12.700306]
[1750592178255,19.26999992,2274.0,2273.9,12.700306]
[1750592178837,19.26999992,2274.0,2273.9,22.022306]
[1750592179046,19.26999992,2274.0,2273.9,21.193106]
[1750592182962,19.26999992,2274.0,2273.9,19.872]
[1750592185268,19.26999992,2274.0,2273.9,20.6236]
[1750592187870,16.720055,2274.0,2273.9,20.6236]
[1750592195377,16.720055,2274.0,2273.9,19.866]
[1750592197586,16.51739117,2274.0,2273.9,20.6811]
[1750592198152,15.21739117,2274.0,2273.9,20.6811]
[1750592198453,15.03239117,2274.0,2273.9,20.6811]
[1750592198866,12.8341445,2274.0,2273.9,20.6811]
[1750592199182,12.8341445,2274.0,2273.9,21.10182994]
[1750592199183,10.0967445,2274.0,2273.9,21.10182994]
[1750592199487,5.70025116,2274.0,2273.9,21.10182994]
[1750592199647,3.50200449,2274.0,2273.9,21.10182994]
[1750592199845,1.30375782,2274.0,2273.9,21.10182994]
[1750592200196,0.8251,2274.8,2274.2,0.55]
[1750592200484,0.8251,2274.8,2274.4,10.55]
[1750592200697,0.8251,2274.8,2274.6,0.55]
[1750592200875,0.8251,2274.8,2274.7,7.898]
[1750592201462,0.8251,2274.8,2274.7,7.348]
[1750592202669,0.05494437,2275.3,2274.7,7.348]
[1750592202869,0.7594,2275.2,2274.8,0.02218513]
[1750592203071,0.7594,2275.2,2274.8,7.36918513]
[1750592203549,0.7594,2275.2,2274.8,7.347]
[1750592204899,0.7594,2275.2,2274.9,0.02218236]
[1750592205399,0.7594,2275.2,2274.8,7.347]
[1750592206297,0.84344046,2275.1,2274.0,1.20732994]
[1750592206471,0.84344046,2275.1,2274.1,7.345]
[1750592206677,0.7885,2274.9,2274.0,1.958]
[1750592206890,0.7885,2274.7,2274.2,10.0]
[1750592207804,0.05495446,2274.6,2274.1,0.44366004]
[1750592208120,0.7885,2274.6,2274.1,10.0]
[1750592208881,0.7885,2274.4,2274.1,10.0]
[1750592209881,0.7885,2274.4,2274.0,1.958]
[1750592210166,0.7885,2274.4,2274.0,11.958]
[1750592210999,0.7885,2274.4,2274.1,0.57222716]
[1750592211209,0.798,2274.9,2274.3,10.0]
[1750592213502,0.798,2274.9,2274.2,7.344]
[1750592213503,0.05495063,2274.8,2274.1,0.55]
[1750592213703,0.798,2274.7,2274.2,10.0]
[1750592217109,0.798,2274.7,2274.3,0.55]
[1750592217678,0.798,2274.7,2274.2,10.0]
[1750592220679,0.798,2274.7,2274.3,0.57221462]
[1750592221079,0.798,2274.7,2274.3,0.55]
[1750592221720,0.798,2274.7,2274.2,10.0]
[1750592224314,0.8235,2274.9,2274.3,1.85022503]
[1750592224517,0.8235,2274.9,2274.5,10.0]
[1750592226335,0.8235,2274.9,2274.4,10.0]
[1750592228009,0.8235,2274.9,2274.5,0.02221004]
[1750592229418,0.8235,2274.9,2274.3,1.958]
[1750592230830,0.8235,2274.9,2274.4,0.02221014]
[1750592234334,0.87845314,2274.9,2274.4,0.02221014]
[1750592235133,0.8235,2274.9,2274.4,0.02221014]
[1750592239741,0.7583,2275.5,2274.8,0.55]
[1750592239949,0.7583,2275.8,2275.0,11.3544]
[1750592240104,0.7583,2275.8,2275.2,0.55]
[1750592240306,0.7583,2275.8,2275.4,0.55]
[1750592240606,0.7583,2275.8,2275.4,1.49387231]
[1750592241003,0.05492446,2275.7,2275.4,0.94387231]
[1750592241317,0.7735,2275.6,2275.4,0.94387231]
[1750592241650,0.7735,2275.4,2274.8,1.951]
[1750592242147,0.7735,2275.4,2274.9,10.0]
[1750592242643,0.05493978,2275.3,2274.9,10.0]
[1750592243147,0.05493978,2275.3,2274.8,2.79733337]
[1750592243804,0.7735,2275.5,2274.8,2.79733337]
[1750592244121,0.33132245,2275.7,2274.8,2.79733337]
[1750592244122,0.7735,2275.3,2274.8,2.79733337]
[1750592244510,0.7735,2275.3,2274.8,3.55928871]
[1750592245243,0.7735,2275.3,2274.9,0.86851652]
[1750592245450,0.7735,2275.3,2274.9,1.27504043]
[1750592247651,0.7735,2275.3,2274.9,2.03699577]
[1750592249862,0.7735,2275.3,2274.9,1.27504043]
[1750592250657,0.7735,2275.3,2274.9,0.42870706]
[1750592250857,0.7735,2275.3,2274.7,1.951]
[1750592251962,0.8153,2275.1,2274.4,9.279]
[1750592252167,0.05495009,2275.0,2274.5,10.0]
[1750592252370,0.8153,2274.9,2274.5,10.0]
[1750592253188,0.8153,2274.9,2274.5,10.43999366]
[1750592255957,0.8153,2274.9,2274.5,0.43999366]
[1750592256130,0.8153,2274.9,2274.4,1.951]
[1750592257876,0.8153,2274.9,2274.4,2.39670926]
[1750592258073,0.7911,2274.7,2274.4,0.44570926]
[1750592258247,0.7911,2274.7,2274.3,10.0]
[1750592261983,0.7911,2274.7,2274.3,10.43622552]
[1750592263078,1.46476879,2275.2,2274.3,10.43622552]
[1750592263258,0.03274364,2275.1,2274.3,10.43622552]
[1750592265182,0.03274364,2275.1,2274.4,0.55]
[1750592265490,2.31506609,2275.7,2274.6,0.55]
[1750592265663,1.23150661,2275.6,2274.7,19.275]
[1750592265980,0.03274364,2275.5,2274.7,19.275]
[1750592266185,0.3678,2275.4,2274.7,19.275]
[1750592266372,0.03274364,2275.3,2274.7,19.275]
[1750592266568,0.3678,2275.2,2274.7,10.0]
[1750592266751,0.3678,2275.4,2274.7,10.0]
[1750592266952,0.03274364,2275.3,2274.7,10.0]
[1750592267748,0.3678,2275.4,2274.7,10.0]
[1750592267984,0.3678,2275.4,2274.8,0.04395312]
[1750592268217,0.3678,2275.4,2274.9,0.7765]
[1750592272679,0.3678,2275.4,2275.0,0.04395042]
[1750592272989,0.03274364,2275.5,2274.9,0.7765]
[1750592273217,0.3678,2275.7,2274.9,0.7765]
[1750592273371,0.03274364,2275.6,2274.9,0.7765]
[1750592273575,0.3678,2275.7,2275.0,0.04394928]
[1750592274127,4.445,2275.9,2275.0,0.04394928]
[1750592274128,0.3678,2275.9,2275.4,0.7765]
[1750592274398,25.0,2276.0,2275.4,0.7765]
[1750592275383,25.0,2276.0,2275.5,0.59393906]
[1750592275583,25.0,2276.0,2275.7,0.55]
[1750592275789,25.0,2276.0,2275.8,0.04393544]
[1750592276505,25.0,2276.0,2275.7,0.55]
[1750592277963,25.0,2276.0,2275.6,0.813]
[1750592278162,25.0,2276.0,2275.6,10.813]
[1750592278396,25.0,2276.0,2275.6,10.0]
[1750592278604,0.03274364,2275.9,2275.6,0.43396284]
[1750592278805,0.03274364,2275.9,2275.4,10.0]
[1750592280183,0.03274364,2275.9,2275.3,0.8085]
[1750592280520,0.3678,2275.8,2275.2,0.54762867]
[1750592280696,0.3678,2275.8,2275.3,10.0]
[1750592281215,25.0,2276.0,2275.7,0.55]
[1750592281429,25.0,2276.0,2275.8,0.74243394]
[1750592282197,25.0,2276.0,2275.8,0.0439354]
[1750592282393,25.0,2276.0,2275.7,0.04393531]
[1750592282622,25.0,2276.0,2275.7,0.59393531]
[1750592284619,25.0,2276.0,2275.9,11.3261]
[1750592284782,25.0,2276.0,2275.9,13.2701]
[1750592284987,22.64993961,2276.0,2275.9,14.51622721]
[1750592285420,22.64993961,2276.0,2275.9,13.81772867]
[1750592288541,22.64993961,2276.0,2275.9,1.32372867]
[1750592288862,22.64993961,2276.0,2275.9,8.0891]
[1750592289067,22.64993961,2276.0,2275.9,10.7761]
[1750592289357,22.64993961,2276.0,2275.9,11.3261]
[1750592289655,22.64993961,2276.0,2275.9,18.6391]
[1750592289803,22.64993961,2276.0,2275.9,11.3261]
[1750592290547,22.64993961,2276.0,2275.9,18.6371]
[1750592292145,22.64993961,2276.0,2275.8,1.944]
[1750592292146,23.01773961,2276.0,2275.8,7.311]
[1750592292332,23.01773961,2276.0,2275.3,1.22381821]
[1750592292536,0.03274364,2275.9,2275.4,7.311]
[1750592292714,23.87411183,2276.0,2275.5,10.0]
[1750592293110,0.03274364,2275.9,2275.5,10.0]
[1750592293311,0.03274364,2275.9,2275.4,7.31]
[1750592293814,0.03274364,2275.9,2275.5,10.0]
[1750592294013,3.15452919,2275.9,2275.5,10.0]
[1750592294209,3.15452919,2275.9,2275.1,1.89172867]
[1750592294519,3.15452919,2275.9,2275.3,10.0]
[1750592294719,0.3678,2275.8,2275.1,2.92980617]
[1750592294961,0.3678,2275.6,2275.1,0.4381775]
[1750592295146,0.03274364,2275.5,2274.8,7.31]
[1750592295323,0.3678,2275.4,2274.9,10.0]
[1750592295521,0.03274364,2275.3,2274.9,0.45008546]
[1750592295723,0.03274364,2275.3,2274.8,7.31]
[1750592295932,0.03274364,2275.3,2274.7,9.254]
[1750592297262,0.3678,2275.2,2274.6,0.55]
[1750592297426,0.3678,2275.2,2274.7,10.0]
[1750592299057,0.3678,2275.2,2274.7,10.44202366]
[1750592299662,0.3678,2275.2,2274.7,0.44202366]
[1750592299863,0.3678,2275.2,2274.7,10.0]
[1750592300845,0.3678,2275.2,2274.6,19.247]
[1750592301769,0.3678,2275.2,2274.6,11.938]
[1750592301961,0.3678,2275.0,2274.6,11.938]
[1750592302938,0.3678,2275.0,2274.6,12.37369585]
[1750592303141,0.3678,2275.0,2274.7,0.04396108]
[1750592303340,0.3678,2275.0,2274.6,13.05626939]
[1750592303840,0.3678,2275.0,2274.6,13.83066939]
[1750592304569,0.3678,2275.0,2274.7,7.31]
[1750592305283,0.3678,2275.0,2274.7,7.35395589]
[1750592305490,0.3678,2275.6,2274.7,7.99257354]
[1750592305689,0.03274364,2275.5,2274.7,7.99257354]
[1750592305850,0.3678,2275.4,2274.7,7.99257354]
[1750592306178,0.03274364,2275.3,2274.7,7.31]
[1750592306882,0.3678,2275.2,2274.7,7.31]
[1750592311760,0.3678,2275.2,2274.7,7.35395567]
[1750592312996,0.3678,2275.2,2274.7,7.31]
[1750592313195,0.3678,2275.2,2274.7,7.35395559]
[1750592314010,0.3678,2275.2,2274.7,7.31]
[1750592314519,0.3678,2275.2,2274.6,10.43569585]
[1750592314666,0.3678,2275.2,2274.8,7.308]
[1750592315298,0.3678,2275.2,2274.9,10.0]
[1750592315600,0.03274364,2275.5,2274.9,10.0]
[1750592315601,0.40054364,2275.5,2274.9,10.0]
[1750592318888,0.40054364,2275.5,2274.8,7.308]
[1750592319420,0.40054364,2275.5,2274.8,8.0957]
[1750592320101,0.3678,2275.5,2275.0,0.55]
[1750592320295,0.3678,2275.7,2275.2,1.3377]
[1750592320500,0.3678,2275.7,2275.3,7.34994355]
[1750592320926,0.3678,2275.9,2275.4,10.0]
[1750592321131,0.3678,2276.2,2275.6,1.3377]
[1750592321422,0.3678,2276.2,2275.7,19.244]
[1750592323363,0.3678,2276.4,2275.9,0.55]
[1750592323521,0.3678,2276.4,2275.8,0.55]
[1750592325034,0.3678,2276.4,2275.8,10.98929396]
[1750592328047,0.3678,2276.4,2275.9,10.0]
[1750592328199,1.939,2276.7,2275.9,17.301]
[1750592328403,23.01773961,2276.0,2275.9,17.301]
[1750592329841,22.64993961,2276.0,2275.9,17.301]
[1750592339040,19.94939556,2276.0,2275.9,18.6135]
[1750592339243,10.40549399,2276.0,2275.9,20.43137795]
[1750592339767,6.58874985,2276.0,2275.9,20.43137795]
[1750592339945,2.19647948,2276.0,2275.9,20.43137795]
[1750592340147,1e-08,2276.0,2275.9,20.43137795]
[1750592340355,1e-08,2276.0,2275.9,19.23700124]
[1750592340556,0.03274364,2277.2,2276.0,11.93600124]
[1750592340761,0.7744,2277.1,2276.3,0.55]
[1750592340976,0.7744,2277.1,2276.5,10.0]
[1750592341144,0.7744,2277.1,2276.6,9.227]
[1750592341344,0.7744,2277.1,2276.7,7.295]
[1750592341680,0.7744,2277.1,2276.8,7.295]
[1750592341876,0.7744,2277.1,2276.7,1.932]
[1750592341877,0.7744,2277.1,2276.3,0.55]
[1750592342079,0.80714364,2277.0,2276.0,0.7625]
[1750592342248,0.80714364,2277.0,2276.1,7.294]
[1750592342449,0.80714364,2277.0,2276.2,10.0]
[1750592343863,0.80714364,2277.0,2276.2,11.50987354]
[1750592344949,0.80714364,2277.0,2276.2,10.0]
[1750592345149,0.80714364,2277.0,2276.3,9.225]
[1750592345372,0.80714364,2277.0,2276.4,7.293]
[1750592346070,0.80714364,2277.0,2275.9,0.55]
[1750592346277,0.80714364,2277.0,2276.2,1.932]
[1750592346676,0.80714364,2277.0,2276.3,7.292]
[1750592351760,0.80714364,2277.0,2276.4,0.72650373]
[1750592352161,0.7744,2277.0,2276.4,10.72650373]
[1750592352361,0.7744,2277.0,2276.5,0.55]
[1750592352558,0.7862,2277.2,2276.6,3.4655908]
[1750592352763,0.7862,2277.2,2276.7,10.55]
[1750592353085,0.7862,2277.8,2276.8,7.33391402]
[1750592353271,0.7862,2277.8,2277.0,0.8071]
[1750592353465,1.06129436,2277.8,2277.1,2.482]
[1750592353667,0.03274364,2277.7,2277.1,2.482]
[1750592354395,0.7862,2277.6,2277.1,1.932]
[1750592354580,0.03274364,2277.5,2277.1,1.932]
[1750592354796,0.7862,2277.6,2277.1,1.932]
[1750592356716,0.7862,2277.6,2277.2,0.04390838]
[1750592357477,0.7862,2277.6,2277.2,0.48873447]
[1750592357692,0.7862,2277.6,2277.1,1.932]
[1750592358176,0.03274364,2277.9,2277.1,1.932]
[1750592358378,0.7525,2277.8,2277.2,10.84710664]
[1750592358588,0.7525,2277.8,2277.3,7.287]
[1750592358788,0.7525,2277.8,2277.4,0.04390527]
[1750592358988,0.7525,2277.8,2277.3,7.287]
[1750592359786,0.03274364,2277.7,2277.2,0.44922063]
[1750592360081,0.7525,2278.2,2277.2,9.211]
[1750592360292,0.03274364,2278.1,2277.2,9.211]
[1750592360575,0.7525,2278.0,2277.2,9.211]
[1750592360773,0.8023,2277.8,2277.2,9.211]
[1750592361187,0.8023,2277.8,2277.3,0.59390796]
[1750592361509,0.8023,2277.8,2277.3,0.55]
[1750592363715,0.8023,2277.8,2277.4,1.925]
[1750592364112,0.8023,2277.8,2277.2,0.43323819]
[1750592364318,0.8023,2277.8,2277.3,9.209]
[1750592364695,0.8023,2277.8,2277.3,9.9944]
[1750592364892,0.8023,2277.8,2277.4,10.0]
[1750592365093,0.7699,2278.3,2277.5,0.55]
[1750592365283,0.7699,2278.3,2277.8,0.55]
[1750592365483,1.43656667,2278.5,2278.0,0.55]
[1750592366082,1.43656667,2278.5,2278.0,10.55]
[1750592366284,1.43656667,2278.5,2278.1,0.04388985]
[1750592366789,1.43656667,2278.5,2278.0,0.55]
[1750592367914,1.43656667,2278.5,2278.1,9.207]
[1750592368523,1.43656667,2278.5,2278.2,0.04389137]
[1750592368686,1.43656667,2278.5,2278.1,9.207]
[1750592370640,1.43656667,2278.5,2278.2,10.0]
[1750592372708,1.43656667,2278.5,2278.2,9.205]
[1750592374602,0.66666667,2278.5,2278.2,9.205]
[1750592376031,0.66666667,2278.5,2278.3,0.04388709]
[1750592376737,0.66666667,2278.5,2278.2,9.205]
[1750592379413,0.66666667,2278.5,2278.1,0.7755]
[1750592379620,0.66666667,2278.5,2278.2,9.201]
[1750592380042,0.66666667,2278.5,2278.3,0.04388668]
[1750592380870,0.66666667,2278.5,2278.4,0.55]
[1750592381008,0.66666667,2278.5,2278.4,1.23257354]
[1750592381210,0.66666667,2278.5,2278.4,1.27645595]
[1750592381445,0.66666667,2278.5,2278.4,2.05827354]
[1750592381745,0.66666667,2278.5,2278.4,11.80846762]
[1750592381958,0.66666667,2278.5,2278.4,10.43276762]
[1750592382106,0.66666667,2278.5,2278.4,0.43276762]
[1750592382328,0.66666667,2278.5,2278.2,1.924]
[1750592382735,0.8081,2278.4,2278.2,1.924]
[1750592383044,0.8081,2278.4,2278.0,0.55]
[1750592383342,0.8081,2278.4,2278.2,1.924]
[1750592384231,0.8081,2278.4,2277.9,10.0]
[1750592384438,0.8081,2278.4,2278.1,10.0]
[1750592385520,0.8081,2278.4,2277.9,0.55]
[1750592385724,0.8081,2278.4,2277.6,10.06645317]
[1750592385725,0.03274364,2278.3,2278.0,1.924]
[1750592386033,0.8081,2278.4,2278.0,1.924]
[1750592386234,0.8081,2278.4,2278.1,0.04389271]
[1750592386750,0.8081,2278.4,2278.0,1.924]
[1750592387049,0.8333,2278.2,2278.0,1.924]
[1750592387420,0.8333,2278.2,2277.6,8.788]
[1750592387749,0.8333,2278.0,2277.5,7.274]
[1750592389342,0.8333,2277.8,2277.5,9.193]
[1750592389531,0.8333,2277.8,2277.5,1.919]
[1750592389734,0.8333,2277.8,2277.5,9.193]
[1750592390128,0.8333,2277.8,2277.5,9.63697137]
[1750592390452,0.8333,2277.8,2277.5,7.71697137]
[1750592391454,0.8333,2277.8,2277.5,7.76087409]
[1750592392572,0.7803,2278.3,2277.6,0.55]
[1750592393153,0.03274364,2278.2,2277.5,1.20707137]
[1750592393347,0.7803,2278.1,2277.6,9.192]
[1750592393972,0.7803,2278.1,2277.7,0.04389944]
[1750592395472,0.7803,2278.1,2277.7,9.192]
[1750592397883,0.7803,2278.1,2277.4,0.55]
[1750592398040,0.7803,2278.1,2277.5,9.23489946]
[1750592398365,0.7803,2278.1,2277.5,9.191]
[1750592398563,0.7803,2278.1,2277.6,0.04389946]
[1750592398761,0.7803,2278.1,2277.7,0.55]
[1750592398972,0.7803,2278.1,2277.8,0.04389941]
[1750592399146,0.7803,2278.1,2277.7,0.55]
[1750592402361,0.7803,2278.1,2277.8,0.04389546]
[1750592402578,0.7803,2278.1,2277.8,9.23389546]
[1750592402780,0.7803,2278.1,2277.8,9.19]
[1750592402978,0.7803,2278.1,2277.9,0.04389552]
[1750592403166,0.7915,2278.5,2277.9,0.04389552]
[1750592403570,0.03274364,2278.4,2277.8,9.19]
[1750592403782,0.7915,2278.5,2277.9,0.04389289]
[1750592404493,0.7915,2278.5,2277.8,9.19]
[1750592404979,0.7915,2278.3,2277.9,9.189]
[1750592405361,0.7915,2278.3,2278.0,0.04389292]
[1750592405859,0.7915,2278.3,2277.9,9.189]
[1750592406879,0.7915,2278.3,2278.0,0.04389294]
[1750592409687,0.7915,2278.3,2277.9,9.189]
[1750592411195,0.7915,2278.3,2278.0,0.04389292]
[1750592411787,0.7915,2278.3,2277.9,9.189]
[1750592412000,0.7915,2278.3,2278.0,0.04389291]
[1750592412394,0.7915,2278.3,2277.9,9.189]
[1750592412885,0.7915,2278.3,2278.0,0.04389291]
[1750592413255,0.7915,2278.3,2277.9,1.919]
[1750592414283,0.7915,2278.3,2277.9,1.96289522]
[1750592415014,0.7915,2278.3,2277.9,1.919]
[1750592417875,0.7915,2278.3,2278.0,0.04389521]
[1750592418433,0.7851,2278.6,2278.0,10.81589521]
[1750592418707,0.7851,2278.6,2278.0,10.772]
[1750592418911,0.7851,2278.6,2278.1,0.043889]
[1750592419611,0.7851,2278.6,2278.0,10.0]
[1750592419998,0.7851,2278.6,2277.7,0.55]
[1750592420181,0.7851,2278.4,2277.7,0.55]
[1750592420375,0.81784364,2278.3,2277.4,0.45275317]
[1750592420600,0.81784364,2278.3,2277.6,10.0]
[1750592420805,0.7851,2278.3,2277.7,0.81589631]
[1750592420984,0.7851,2278.3,2277.8,0.55]
[1750592421378,0.7851,2278.3,2277.7,0.55]
[1750592421815,0.7851,2278.3,2277.8,11.914]
[1750592422611,0.7851,2278.3,2277.9,0.04389367]
[1750592423221,0.7851,2278.3,2278.0,0.55]
[1750592423785,0.7851,2278.3,2277.9,2.464]
[1750592424099,0.7851,2278.3,2277.9,0.55]
[1750592424282,0.7851,2278.3,2277.9,7.264]
[1750592424619,0.7851,2278.3,2277.8,19.178]
[1750592425919,0.7851,2278.3,2277.9,0.04389429]
[1750592426316,0.7851,2278.3,2277.8,19.178]
[1750592426686,0.8047,2278.7,2277.9,10.8038]
[1750592426885,0.8047,2278.7,2277.9,0.8038]
[1750592427085,0.8047,2278.7,2277.9,10.84769094]
[1750592427321,0.03274364,2278.6,2277.9,10.0]
[1750592427497,0.8047,2278.5,2277.9,10.0]
[1750592428621,0.83744364,2278.4,2278.0,9.177]
[1750592429321,0.83744364,2278.4,2278.0,10.0]
[1750592431321,0.8047,2278.4,2278.0,10.0]
[1750592431528,0.8047,2278.4,2278.1,0.04389521]
[1750592438415,0.8047,2278.4,2278.2,7.26]
[1750592441054,0.8047,2278.4,2277.9,10.0]
[1750592441209,0.8219,2278.2,2277.5,0.45275317]
[1750592441410,10.0,2278.9,2277.3,0.44195426]
[1750592441411,0.85464364,2278.1,2277.3,0.44195426]
[1750592441614,0.85464364,2278.1,2277.3,7.259]
[1750592441823,0.85464364,2278.1,2277.4,10.0]
[1750592442212,0.85464364,2278.1,2277.3,0.43233065]
[1750592442422,0.85464364,2278.1,2277.3,10.0]
[1750592444157,0.85464364,2278.1,2277.2,7.258]
[1750592445056,0.8326,2278.0,2277.2,10.0]
[1750592445238,0.310678,2277.9,2277.2,10.4433024]
[1750592445547,0.8326,2277.8,2277.2,10.4433024]
[1750592445851,0.03274364,2277.7,2277.2,10.4433024]
[1750592446052,0.8122,2277.6,2277.2,10.4433024]
[1750592446627,0.03274364,2277.5,2277.2,10.0]
[1750592447669,0.8122,2277.4,2276.8,0.55]
[1750592447966,0.8122,2277.3,2276.8,1.914]
[1750592448251,0.84494364,2277.3,2276.6,0.0439183]
[1750592448452,0.84494364,2277.3,2276.5,2.7262]
[1750592448658,0.84494364,2277.3,2276.6,17.30091831]
[1750592448856,0.84494364,2277.3,2276.6,17.257]
[1750592449036,0.84494364,2277.3,2276.7,0.04391831]
[1750592449732,0.84494364,2277.3,2276.6,17.257]
[1750592450427,0.84494364,2277.3,2276.6,0.43578857]
[1750592450633,0.84494364,2277.3,2276.6,7.257]
[1750592450833,0.84494364,2277.3,2276.5,10.0]
[1750592451034,0.84494364,2277.3,2276.6,7.258]
[1750592451756,0.84494364,2277.3,2276.4,1.319711]
[1750592452319,0.84494364,2277.3,2276.1,10.0]
[1750592452526,0.84494364,2277.3,2276.0,1.909]
[1750592453177,0.7555,2277.1,2276.0,1.909]
[1750592453328,0.7555,2276.9,2276.0,1.909]
[1750592453532,0.7555,2276.7,2276.0,1.909]
[1750592453862,0.7555,2276.5,2276.0,2.35269469]
[1750592454026,0.7555,2276.5,2276.0,2.39662648]
[1750592454227,0.7555,2276.5,2276.0,2.35269469]
[1750592455266,0.7555,2276.5,2276.0,2.39662652]
[1750592455958,0.7555,2276.5,2276.0,2.35269469]
[1750592457251,0.8244,2276.8,2276.1,0.84812856]
[1750592457442,0.03274364,2276.7,2276.1,0.84812856]
[1750592458242,0.03274364,2276.7,2276.1,0.04392856]
[1750592458765,0.8244,2276.6,2276.0,2.35269469]
[1750592459746,0.8244,2276.4,2276.0,2.35269469]
[1750592461767,0.8244,2276.4,2276.1,7.257]
[1750592462429,0.8244,2276.4,2275.5,10.782]
[1750592462430,0.8244,2276.4,2275.8,1.91]
[1750592462745,0.825,2276.2,2275.9,7.257]
[1750592463069,0.825,2276.2,2275.9,10.0]
[1750592463596,0.825,2276.2,2276.1,4.39348007]
[1750592465571,0.85774364,2276.2,2276.1,4.39348007]
[1750592465936,0.85774364,2276.2,2276.0,4.39367311]
[1750592466138,0.85774364,2276.2,2276.1,4.39348007]
[1750592466386,0.8319,2276.1,2276.0,4.39367311]
[1750592466539,1.13883364,2276.1,2276.0,4.39367311]
[1750592468165,0.30693364,2276.1,2275.1,4.39530656]
[1750592468372,1.3819,2276.0,2275.9,4.39386616]
[1750592468587,0.8319,2275.9,2275.8,4.39405923]
[1750592468764,0.86464364,2275.9,2275.8,4.39405923]
[1750592468966,0.03274364,2275.9,2275.6,4.39439873]
[1750592469284,0.8319,2275.8,2275.7,4.39406882]
[1750592469691,0.8319,2275.8,2275.6,4.39439873]
[1750592469891,2.77564364,2275.7,2275.6,4.39439873]
[1750592470092,3.053208,2275.7,2275.6,4.39439873]
[1750592470897,13.053208,2275.7,2275.6,4.39439873]
[1750592471125,13.02046436,2275.7,2275.6,4.39439873]
[1750592472380,13.42772009,2275.7,2275.6,4.39439873]
[1750592472602,13.42771984,2275.7,2275.6,4.39439873]
[1750592474173,13.42782845,2275.7,2275.6,4.39439873]
[1750592474808,13.4278323,2275.7,2275.6,4.39439873]
[1750592474986,13.42783183,2275.7,2275.6,4.39439873]
[1750592475191,13.42783103,2275.7,2275.6,4.39439873]
[1750592475919,2.18519,2276.1,2276.0,4.39367311]
[1750592476223,2.35151842,2276.1,2276.0,4.39367311]
[1750592476511,0.8076,2276.2,2276.1,4.39348007]
[1750592476716,1.21532418,2276.2,2276.1,4.39348007]
[1750592477975,1.21551427,2276.2,2276.1,4.39348007]
[1750592478175,1.21552248,2276.2,2276.1,4.39348007]
[1750592478480,1.21551921,2276.2,2276.1,4.39348007]
[1750592478977,1.21589898,2276.2,2276.1,4.39348007]
[1750592479374,1.2159251,2276.2,2276.1,4.39348007]
[1750592480221,1.21591358,2276.2,2276.1,4.39348007]
[1750592480425,1.21591786,2276.2,2276.1,4.39348007]
[1750592480929,1.21592404,2276.2,2276.1,4.39348007]
[1750592481796,1.21658137,2276.2,2276.1,4.39348007]
[1750592482822,1.21658346,2276.2,2276.1,4.39348007]
[1750592482991,1.21658318,2276.2,2276.1,4.39348007]
[1750592483642,0.8076,2276.2,2276.1,4.39348007]
[1750592483829,1.2167317,2276.2,2276.1,4.39348007]
[1750592486635,1.21694566,2276.2,2276.1,4.39348007]
[1750592488191,0.40934566,2276.2,2276.1,4.39348007]
[1750592488394,2.6754,2276.7,2276.3,4.39309405]
[1750592488589,0.40956012,2276.6,2276.5,4.3927081]
[1750592489399,0.03274364,2276.8,2276.7,4.39232222]
[1750592489606,0.40940911,2276.8,2276.7,4.39232222]
[1750592490454,0.80214364,2276.9,2276.8,4.3921293]
[1750592490656,2.23065428,2276.9,2276.8,4.3921293]
[1750592491235,2.23065428,2276.9,2276.7,4.39232222]
[1750592491557,1.82121424,2276.9,2276.8,4.3921293]
[1750592491725,2.23090417,2276.9,2276.8,4.3921293]
[1750592491920,0.7629,2276.8,2276.7,4.39232222]
[1750592492106,1.17594016,2276.8,2276.7,4.39232222]
[1750592492307,1.58560013,2276.8,2276.7,4.39232222]
[1750592492542,8.83759542,2276.8,2276.7,4.39232222]
[1750592493862,8.83774212,2276.8,2276.7,4.39232222]
[1750592494013,8.83774176,2276.8,2276.7,4.39232222]
[1750592494743,8.83774177,2276.8,2276.7,4.39232222]
[1750592495228,8.42794016,2276.8,2276.7,4.39232222]
[1750592495545,10.74371579,2276.8,2276.7,4.39232222]
[1750592496148,10.74356645,2276.8,2276.7,4.39232222]
[1750592496345,10.74356649,2276.8,2276.7,4.39232222]
[1750592496709,10.74357222,2276.8,2276.7,4.39232222]
[1750592498240,10.74357129,2276.8,2276.7,4.39232222]
[1750592499056,10.74359001,2276.8,2276.7,4.39232222]
[1750592499754,1.58559001,2276.8,2276.7,4.39232222]
[1750592499956,10.32854985,2276.8,2276.7,4.39232222]
[1750592500356,9.56564985,2276.8,2276.7,4.39232222]
[1750592500556,9.156,2276.8,2276.7,4.39232222]
[1750592500760,9.056,2276.8,2276.7,4.39232222]
[1750592503434,0.7758,2277.0,2276.9,4.3919364]
[1750592503648,10.37346935,2277.0,2276.9,4.3919364]
[1750592503846,11.40102888,2277.0,2276.9,4.3919364]
[1750592504464,11.40166182,2277.0,2276.9,4.3919364]
[1750592504995,11.40166937,2277.0,2276.9,4.3919364]
[1750592505174,2.24666944,2277.0,2276.9,4.3919364]
[1750592505474,9.59830793,2277.0,2276.9,4.3919364]
[1750592505776,9.56556429,2277.0,2276.9,4.3919364]
[1750592506636,9.56555058,2277.0,2276.9,4.3919364]
[1750592507643,9.56455058,2277.0,2276.9,4.3919364]
[1750592507839,0.41055058,2277.0,2276.9,4.3919364]
[1750592508046,0.03274364,2277.3,2277.2,4.3913578]
[1750592508246,1.32279031,2277.3,2277.2,4.3913578]
[1750592508863,1.32278014,2277.3,2277.2,4.3913578]
[1750592509199,0.91234364,2277.3,2277.2,4.3913578]
[1750592509978,1.32251211,2277.3,2277.2,4.3913578]
[1750592510786,0.91234364,2277.3,2277.2,4.3913578]